Workbook

Sheet LubriCalc
B2: Lubrication cycle calculator
B3: V2.10 / 15.12.2023 / michsc | K3: 1
B5: Situation: | G5: Type:
B6: speed | C6: 3 | D6: [m/s] | G6: Pump | H6: 1 | J6: quantity per stroke: | K6: =LOOKUP(H6,Constants!B36:B37,Constants!E36:E37) -> 0.32 | L6: [cm3]
B7: shift operation | C7: 3 | E7: =LOOKUP(C7,Constants!B22:B24,Constants!C22:C24) -> 24 | F7: [h] | G7: Gantry, Trackmotion | H7: 1 | I7: =IF(H6=2,3+H7,H7) -> 1 | J7: example: | K7: =LOOKUP(H7,Constants!B17:B19,Constants!A17:A19) -> EP, TMF, TMO
B8: duty cycle | C8: 50 | D8: [%]
G9: =VLOOKUP(I7,Constants!#REF!,2,FALSE) ->  | H9: =Constants!#REF! -> 
B10: direct Input for daily travel | C10: 120 | D10: [km/day]
B11: adjustment value (50% - 200%) | C11: 3 | E11: =LOOKUP(C11,Constants!B27:B33,Constants!D27:D33) -> 1
B12: gantry or track size | C12: 1
B15: Tabular value: (empirical value Güdel)
B16: reqiured lubrication amount U per lubrication point | C16: =((LOOKUP(C12,Constants!B13:B14,Constants!C13:C14))*$E$11) -> 0.3 | D16: [cm3/100km]
B17: required lubrication amount Pt (total) | C17: =IF(C12=1,((LOOKUP($H$7,Constants!B52:B54,Constants!C52:C54))*$E$11),((LOOKUP($H$7,Constants!B52:B54,Constants!D52:D54)))*$E$11) -> 0.9 | D17: [cm3/100km]
B19: Results:
B20: daily travel V | C20: =IF(K3=1,(C8/100*E7*C6*3.6),(C10)) -> 129.6 | D20: [km/day] | E20: =IF(K3<>2,(Constants!C66),(Constants!C67)) -> calculated
B21: lubrication quantity per day P | C21: =C17*C20/100 -> 1.1664 | D21: [cm3/day]
B22: lubrication quantity per cycle at each rack | C22: =C17*E22 -> 0.45 | D22: [cm3/cycle] | E22: =INDEX(Constants!$F$40:$G$42,LubriCalc!$H$7,LubriCalc!$H$6) -> 0.5
B23: lubrication quantity per cycle at each guide | C23: =C17*E23 -> 0.225 | D23: [cm3/cycle] | E23: =INDEX(Constants!$F$43:$G$45,LubriCalc!$H$7,LubriCalc!$H$6) -> 0.25
B24: emptying time of cartridge P1 | C24: =IF(E24>ConstMaxReplTime,(ConstMaxReplTime),ROUNDDOWN(LubriCalc!E24,0)) -> 11 | D24: [month] | E24: =ConstCartVol/(LubriCalc!C21*ConstMonthDay) -> 11.43118427 | F24: (effective)
B25: =LOOKUP(LubriCalc!H6,Constants!B47:B48,Constants!C47:C48) -> P2 | C25: =IF(H6=1,LOOKUP(H7,Constants!B40:B42,Constants!D40:D42),LOOKUP(H7,Constants!B40:B42,Constants!E40:E42)) -> 3
B26: every | C26: =1/((C17/(C25*K6)))*100 -> 106.6666667 | D26: [km]
B28: Nice to know:
B29: lubrication quantity per day at each rack | C29: =$C$21*$E$29 -> 0.5832 | D29: [cm3/day] | E29: =INDEX(Constants!$F$40:$G$42,LubriCalc!$H$7,LubriCalc!$H$6) -> 0.5
B30: lubrication quantity per day at each guide | C30: =$C$21*$E$30 -> 0.2916 | D30: [cm3/day] | E30: =INDEX(Constants!$F$43:$G$45,LubriCalc!$H$7,LubriCalc!$H$6) -> 0.25
B31: total km per cartridge life time | C31: =C20*ConstMonthDay*E24 -> 44444.44444 | D31: [km]
B32: strokes per cartridge life time | C32: =ROUNDDOWN(C31/C26,0) -> 416 | D32: [stroke]

Sheet Constants (hidden)
A3: Lubrication
E4: Name
A5: Max interval | C5: 100 | D5: [km] | E5: ConstMaxIntDist
A6: Max interval | C6: 3 | D6: [day] | E6: ConstMaxIntTime
A7: Max replacementime | C7: 36 | D7: [month] | E7: ConstMaxReplTime
A8: Cardridge volume | C8: 400 | D8: [cm^3] | E8: ConstCartVol
A9: Volume per exit/stroke | C9: 0.16 | D9: [cm^3] | E9: ConstVolPerExitStroke
A10: Average day/month | C10: 30 | D10: [day/month] | E10: ConstMonthDay
A12: Req. Quant. 100km
A13: Size 2 ¦ 3 ¦ 4 | B13: 1 | C13: 0.3 | D13: [cm^3/100km]
A14: Size 5 ¦ 6 ¦ 7 | B14: 2 | C14: 0.4 | D14: [cm^3/100km]
A16: Quant. Lubpart
A17: EP, TMF, TMO | B17: 1 | C17: 3
A18: ZP, FP Y-Axis | B18: 2 | C18: 6
A19: FP X-Axis | B19: 3 | C19: 4
B21: idx | C21: hours/day
A22: ShiftWork 1 | B22: 1 | C22: 8 | D22: [h]
A23: ShiftWork 2 | B23: 2 | C23: 16 | D23: [h]
A24: ShiftWork 3 | B24: 3 | C24: 24 | D24: [h]
B26: idx | C26: Name | D26: Percentage
A27: Degree of poll. 1 | B27: 1 | C27: -50% | D27: 0.5
A28: Degree of poll. 3 | B28: 2 | C28: -25% | D28: 0.75
A29: Degree of poll. 5 | B29: 3 | C29: 0 | D29: 1
A30: Degree of poll. 6 | B30: 4 | C30: +25% | D30: 1.25
A31: Degree of poll. 7 | B31: 5 | C31: +50% | D31: 1.5
A32: Degree of poll. 8 | B32: 6 | C32: +75% | D32: 1.75
A33: Degree of poll. 9 | B33: 7 | C33: +100% | D33: 2
B35: idx | C35: Name | D35: exits [] | E35: strokeportion [cm^3 ]
A36: Pump type | B36: 1 | C36: FlexxPump4 N412A + B412A | D36: 2 | E36: =D36*C9 -> 0.32
B37: 2 | C37: FlexxPump4 D424A | D37: 4 | E37: =D37*C9 -> 0.64
D38: min. Strokes (Splitter)
B39: idx | C39: Name | D39: N412A + B412A | E39: D424A | F39: N412A + B412A | G39: D424A
A40: Systems | B40: 1 | C40: 1-Axis Module ¦ 3 lubrication points | D40: 3 | E40: 1 | F40: =1/2 -> 0.5 | G40: =2/4 -> 0.5 | H40: % rack
B41: 2 | C41: 2-Axis Module ¦ 6 lubrication points | D41: 4 | E41: 3 | F41: =1/6 -> 0.1666666667 | G41: =1/4 -> 0.25
B42: 3 | C42: X-Axis FP ¦ 4 lubrication points | D42: 3 | E42: 1 | F42: =1/4 -> 0.25 | G42: =1/4 -> 0.25
B43: 1 | C43: 1-Axis Module ¦ 3 lubrication points | D43: 3 | E43: 1 | F43: =1/4 -> 0.25 | G43: =1/4 -> 0.25 | H43: % guide
B44: 2 | C44: 2-Axis Module ¦ 6 lubrication points | D44: 4 | E44: 3 | F44: =1/6 -> 0.1666666667 | G44: =1/8 -> 0.125
B45: 3 | C45: X-Axis FP ¦ 4 lubrication points | D45: 3 | E45: 1 | F45: =1/4 -> 0.25 | G45: =1/4 -> 0.25
A47: name P2 | B47: 1 | C47: P2
B48: 2 | C48: strokes per cycle
A51: Req. Quant. Per Lub | B51: idx | C51: Sice 1-4 | D51: Sice 5-7
A52: 3- lube points | B52: 1 | C52: =$C$13*C17 -> 0.9 | D52: =$C$14*C17 -> 1.2
A53: 6- lube points | B53: 2 | C53: =$C$13*C18 -> 1.8 | D53: =$C$14*C18 -> 2.4
A54: 4- lube points | B54: 3 | C54: =$C$13*C19 -> 1.2 | D54: =$C$14*C19 -> 1.6
A56: Units | B56: 1 | C56: [cm3]
B57: 2 | C57: [cm3/100km]
B58: 3 | C58: [cm3/day]
B59: 4 | C59: [cm3/cycle]
B60: 5 | C60: [km/day]
B61: 6 | C61: [month]
B62: 7 | C62: [km]
B63: 8 | C63: [stroke]
A65: direct Input | C65: -
C66: calculated
C67: direct input

Sheet Pictures (hidden)
A1: Spalte1 | B1: Spalte2
A3: 1
A4: 2
A5: 3
A6: 4
A7: 5
A8: 6

Sheet release note
A1: version | B1: change | C1: date | D1: responsible
A2: V1.00 | B2: release for DesignRules / Gudel Downlads on Website / Picture Park | C2: 2016-08-29 | D2: michsc
A3: V2.00 | B3: new added butom for direct Input daily travel / lubrication values (Req. Quant. 100km) for size 1-4 and size 5-7 doubled / corecture values adjustetd (+/-25% and +/-50%) | C3: 2018-02-02 | D3: michsc
A4: V2.01 | B4: corecture values adjustetd: -50% up to +100% | C4: 2018-05-28 | D4: michsc
A5: V2.10 | B5: Pump types/designations updated (new Flexxpump 4) / accordingly lubricant quantity per output adjusted (new 0.16 cm^3, old: 0.15 cm^3) Programming adapted for Windows 10, various small design adjustments made. | C5: 2013-12-15 | D5: michsc
A29: =INDEX($B$2:$B$28,MATCH("",$B$2:$B$28,-1)) -> Pump types/designations updated (new Flexxpump 4) / accordingly lubricant quantity per output adjusted (new 0.16 cm^3, old: 0.15 cm^3) Programming adapted for Windows 10, various small design adjustments made. | B29: latest release
